Cogmind - Beta 9.6 @@@ ROGUE MODE // 2020.04.14 @ 05:06:12 Player: cptwinky Result: Destroyed by G-34 Mercenary with Small Laser Performance ------------- Evolutions (0) 0 Regions Visited (4) 800 Robots Destroyed (17) 85 Value Destroyed (450) 450 Prototype IDs (0) 0 Alien Tech Used (0) 0 Bonus (0) 0 TOTAL SCORE: 1335 Bonus ------- None Cogmind --------- Core Integrity 0/250 Matter 300/300 Energy 95/100 System Corruption 0% Temperature Cool (6) Movement Core (150) Ox2 Location -9/Mines Parts ------- > --- POWER (1) -------- (None) > --- PROPULSION (2) --- (None) > --- UTILITY (2) ------ Small Storage Unit Core Shielding > --- WEAPON (2) ------- Flail > --- INVENTORY (6) ---- Trap Extractor Autogun Autogun Flail Peak State ------------ > --- POWER ------------ Ion Engine > --- PROPULSION ------- Light Treads Armored Wheel > --- UTILITY ---------- Small Storage Unit Small Storage Unit > --- WEAPON ----------- Flail Flail > --- INVENTORY -------- Light Treads Compact Wheel Light EM Pulse Cannon Light EM Pulse Cannon Autogun Autogun Flail Flail [Rating: 11] Favorites ----------- Power Backup Power I Engine Backup Power I Propulsion Backup Propulsion I Treads Light Treads Wheel Compact Wheel Hover Unit Backup Propulsion I Utility Small Storage Unit Storage Small Storage Unit Protection Core Shielding Weapon Flail Energy Gun Medium Laser Ballistic Gun Light Assault Rifle Impact Weapon Flail Build | -11 -10 -10 -10 -9 ------- Run | Scr Mat Min Exi Min Slots Evolved . | . . . . . Power . | . . . . . Propulsion . | . . . . . Utility . | . . . . . Weapon . | . . . . . Parts Attached 20 | 7 10 1 1 1 Power 2 | 1 1 . . . Engine 2 | 1 1 . . . Core . | . . . . . Reactor . | . . . . . Propulsion 8 | 2 4 1 . 1 Treads 3 | 1 2 . . . Leg . | . . . . . Wheel 3 | 1 2 . . . Hover 2 | . . 1 . 1 Flight . | . . . . . Utility 4 | 2 1 . 1 . Device . | . . . . . Storage 3 | 2 . . 1 . Processor . | . . . . . Hackware . | . . . . . Protection 1 | . 1 . . . Artifact . | . . . . . Weapon 6 | 2 4 . . . Energy Gun 1 | 1 . . . . Energy Cannon . | . . . . . Ballistic Gun 3 | 1 2 . . . Ballistic Cannon . | . . . . . Launcher . | . . . . . Special Weapon . | . . . . . Impact Weapon 2 | . 2 . . . Slashing Weapon . | . . . . . Piercing Weapon . | . . . . . Special Melee Weapon . | . . . . . Unidentified Prototypes . | . . . . . Parts Lost 6 | . . 1 . 5 Power 1 | . . . . 1 Propulsion 4 | . . 1 . 3 Utility . | . . . . . Weapon 1 | . . . . 1 Highest Loss Streak 5 | . . 1 . 5 Average Slot Usage (%) 97 | . 95 100 100 88 Engine 13 | . 13 14 14 10 Treads 5 | . 13 . . . Wheel 4 | . 10 . . . Hover 17 | . 4 28 28 21 Storage 18 | . 25 14 14 14 Protection 8 | . . 14 14 14 Energy Gun 1 | . 4 . . . Ballistic Gun 2 | . 6 . . . Impact Weapon 22 | . 15 28 28 26 Naked Turns . | . . . . . Heaviest Build 19 | 14 19 10 10 10 Greatest Support 16 | 16 16 12 12 12 Greatest Overweight (x) 2 | . 1 . . 2 Average Overweight (x) . | . . . . . Largest Inventory Capacity 8 | 8 8 6 6 6 Average Capacity 6 | 6 7 6 6 6 Most Carried 8 | 4 8 6 6 6 Average Carried 5 | 2 6 5 5 5 Final Capacity 8 | 8 6 6 6 6 Final Carried 6 | 4 6 5 6 4 Class Distribution -------------------- 100% | Mutant Dominant Class ---------------- Mutant | -10/Materials Mutant | -10/Mines Mutant | -10/Exiles Mutant | -9/Mines Resources | -11 -10 -10 -10 -9 ----------- Run | Scr Mat Min Exi Min Matter Collected 406 | 273 113 10 . 10 Remotely . | . . . . . Salvage Created 682 | 73 458 94 . 57 Parts 19 | 2 15 . . 2 Haulers Intercepted 1 | . 1 . . . Recyclers Shooed . | . . . . . Parts Field Recycled . | . . . . . Retrieved Matter . | . . . . . Parts Self-Destructed . | . . . . . Prevented . | . . . . . Kills | -11 -10 -10 -10 -9 ------- Run | Scr Mat Min Exi Min Combat Hostiles Destroyed 13 | . 8 2 . 3 Melee 4 | . 2 . . 2 Guns 6 | . 6 . . . Classes Destroyed 5 | 1 3 . . 1 Hauler 1 | . 1 . . . Recycler 2 | 1 1 . . . Operator 1 | . 1 . . . Swarmer 2 | . . . . 2 Grunt 11 | . 8 2 . 1 Best Kill Streak 6 | 1 6 1 . 3 Combat Bots Only 6 | . 6 1 . 3 Max Kills in Single Turn 1 | 1 1 1 . 1 Gunslinging . | . . . . . Exploded . | . . . . . Melee 1 | . 1 . . 1 Uniques/NPCs Destroyed . | . . . . . Combat | -11 -10 -10 -10 -9 -------- Run | Scr Mat Min Exi Min Damage Taken 713 | . 200 176 . 337 Core 251 | . 45 47 . 159 Absorbed by Shields . | . . . . . Core Remaining (%) 100 | 100 . . . . Volleys Fired 16 | 3 13 . . . Largest 2 | 2 2 . . . Hottest 70 | 70 70 . . . Shots Fired 32 | 6 26 . . . Gun 32 | 6 26 . . . Cannon . | . . . . . Launcher . | . . . . . Special . | . . . . . Kinetic 16 | 3 13 . . . Thermal 16 | 3 13 . . . Explosive . | . . . . . Electromagnetic . | . . . . . Robot Hit Streak 22 | 5 22 . . . Robot Miss Streak 2 | 1 2 . . . Penetration Max . | . . . . . Secondary Targets . | . . . . . Shots Hit Robots 55 | 5 32 9 . 9 Core Hits 20 | 2 16 . . 2 Critical Hits 1 | 1 . . . . Critical Kills . | . . . . . Critical Parts Destroyed 1 | 1 . . . . Melee Attacks 39 | . 11 14 . 14 Impact 39 | . 11 14 . 14 Slashing . | . . . . . Piercing . | . . . . . Sneak Attacks 3 | . 3 . . . Combat Hostiles . | . . . . . Follow-up Attacks 5 | . 1 3 . 1 Damage Inflicted 1203 | 54 689 211 . 249 Guns 301 | 54 247 . . . Cannons . | . . . . . Explosions . | . . . . . Melee 902 | . 442 211 . 249 Ramming . | . . . . . Kinetic 114 | 28 86 . . . Thermal 187 | 26 161 . . . Explosive . | . . . . . Electromagnetic . | . . . . . Impact 902 | . 442 211 . 249 Slashing . | . . . . . Piercing . | . . . . . Highest Corruption . | . . . . . Average Corruption . | . . . . . Corruption Purged . | . . . . . Overload Shots . | . . . . . Overflow Damage 136 | . 91 10 . 35 Projectiles . | . . . . . Explosions . | . . . . . Melee 136 | . 91 10 . 35 Knockbacks 2 | . 2 . . . Impact 2 | . 2 . . . Kinetic . | . . . . . Secondary . | . . . . . Self-Inflicted Damage . | . . . . . Shots . | . . . . . Rammed . | . . . . . Targets Rammed . | . . . . . Kicked . | . . . . . Crushed . | . . . . . Highest Temperature 206 | 50 206 . . . Average Temperature 77 | 26 87 . . . Received Heat Transfer 216 | . 108 48 . 60 Siege Activations . | . . . . . Robots Corrupted . | . . . . . Combat Hostiles . | . . . . . Parts Fried 7 | . 4 2 . 1 Impact Corruptions 9 | . 4 2 . 3 Robots Melted . | . . . . . Combat Hostiles . | . . . . . Parts Melted 2 | . 2 . . . Heat Transferred 518 | 74 444 . . . Parts Sabotaged . | . . . . . Parts Stolen . | . . . . . Parts Stripped . | . . . . . Power Chain Reactions . | . . . . . Missiles Intercepted . | . . . . . Alert | -11 -10 -10 -10 -9 ------- Run | Scr Mat Min Exi Min Peak Influence 226 | 5 226 69 . 40 Average Influence 85 | 1 132 66 . 6 Maximum Alert Level 1 | . 1 . . . Low Security (%) 92 | 100 83 100 . 100 Level 1 7 | . 16 . . . Level 2 . | . . . . . Level 3 . | . . . . . Level 4 . | . . . . . Level 5 . | . . . . . High Security . | . . . . . Max Security . | . . . . . Squads Dispatched 4 | . 4 . . . Investigation 3 | . 3 . . . Extermination . | . . . . . Reinforcement 1 | . 1 . . . Assault . | . . . . . Garrison . | . . . . . Intercept . | . . . . . Construction Impeded . | . . . . . Haulers Reinforced . | . . . . . Stealth | -11 -10 -10 -10 -9 --------- Run | Scr Mat Min Exi Min Distress Signals . | . . . . . Communications Jammed . | . . . . . Distress Signals . | . . . . . Times Spotted 26 | . 11 5 . 10 Peak Tracking Total 7 | . 3 3 . 7 Tactical Retreats 2 | . . 1 . 1 Traps | -11 -10 -10 -10 -9 ------- Run | Scr Mat Min Exi Min Traps Triggered 1 | . 1 . . . Indirectly . | . . . . . Trap Hack Attempts . | . . . . . Triggered . | . . . . . Disarmed . | . . . . . Reprogrammed . | . . . . . Reused . | . . . . . Traps Extracted . | . . . . . Installed . | . . . . . Triggered . | . . . . . Exploded 1 | . . . . 1 Machines | -11 -10 -10 -10 -9 ---------- Run | Scr Mat Min Exi Min Machines Disabled . | . . . . . Max in Single Turn . | . . . . . Machines Sabotaged . | . . . . . Garrisons Compromised . | . . . . . Overloaded Fab Kills . | . . . . . Fab Network Shutdowns . | . . . . . Hacking | -11 -10 -10 -10 -9 --------- Run | Scr Mat Min Exi Min Machines Accessed 6 | . 5 . 1 . Terminals 2 | . 2 . . . Fabricators . | . . . . . Repair Stations 1 | . 1 . . . Recycling Units 2 | . 2 . . . Scanalyzers . | . . . . . Garrison Access . | . . . . . Total Hacks 11 | . 10 . 1 . Successful 7 | . 6 . 1 . Failed 4 | . 4 . . . Catastrophic 1 | . 1 . . . Database Lockouts . | . . . . . Manual 7 | . 7 . . . Terminals 6 | . 6 . . . Fabricators . | . . . . . Repair Stations 1 | . 1 . . . Recycling Units 3 | . 3 . . . Scanalyzers . | . . . . . Garrison Access . | . . . . . Terminal Hacks 3 | . 2 . 1 . Record 1 | . . . 1 . Robot Analysis 2 | . 2 . . . Fabricator Hacks . | . . . . . Repair Station Hacks 1 | . 1 . . . Refit 1 | . 1 . . . Recycling Unit Hacks 2 | . 2 . . . Retrieve Components 2 | . 2 . . . Scanalyzer . | . . . . . Garrison Access Hacks . | . . . . . Unauthorized Hacks 1 | . 1 . . . Terminals . | . . . . . Fabricators . | . . . . . Repair Stations . | . . . . . Recycling Units 1 | . 1 . . . Mask 1 | . 1 . . . Scanalyzers . | . . . . . Garrison Access . | . . . . . Data Cores Recovered . | . . . . . Used . | . . . . . Hacking Detections 2 | . 2 . . . Full Trace Events 2 | . 2 . . . Feedback Events . | . . . . . Feedback Blocked . | . . . . . Robot Schematics Acquired . | . . . . . Robots Built . | . . . . . Matter . | . . . . . Time . | . . . . . Total Robot Build Rating . | . . . . . Part Schematics Acquired . | . . . . . Parts Built . | . . . . . Matter . | . . . . . Time . | . . . . . Total Part Build Rating . | . . . . . Parts Repaired . | . . . . . Time . | . . . . . Parts Recycled . | . . . . . Recycled Matter . | . . . . . Retrieved Matter . | . . . . . Retrieved Components 6 | . 6 . . . Parts Scanalyzed . | . . . . . Part Schematics Acquired . | . . . . . Parts Damaged . | . . . . . Bothacking | -11 -10 -10 -10 -9 ------------ Run | Scr Mat Min Exi Min Used RIF Installer . | . . . . . Robots Hacked . | . . . . . Non-combat . | . . . . . Combat . | . . . . . Robot Hacks Applied . | . . . . . Relay Couplers Released . | . . . . . Robots Rewired . | . . . . . Allies Hacked . | . . . . . Hacks Repelled . | . . . . . Allies | -11 -10 -10 -10 -9 -------- Run | Scr Mat Min Exi Min Total Allies . | . . . . . Largest Group . | . . . . . Highest-Rated Group . | . . . . . Highest-Rated Ally . | . . . . . Total Orders . | . . . . . Ally Attacks . | . . . . . Total Damage . | . . . . . Kills . | . . . . . Allies Corrupted . | . . . . . Allies Melted . | . . . . . Intel | -11 -10 -10 -10 -9 ------- Run | Scr Mat Min Exi Min Robot Analysis Total 2 | . 2 . . . Derelict Logs Recovered 1 | . . . . 1 Drone Launches . | . . . . . Drone Recoveries . | . . . . . Exploration | -11 -10 -10 -10 -9 ------------- Run | Scr Mat Min Exi Min Turns Passed 1121 | 65 443 397 124 92 Spaces Moved 734 | 44 275 210 185 20 Core 5 | 2 . . . 3 Treads . | . . . . . Legs . | . . . . . Wheels 263 | 42 221 . . . Hover 466 | . 54 210 185 17 Flight . | . . . . . Fastest Speed 50 | 50 76 66 66 66 Average Speed 79 | 97 95 66 66 86 Slowest Speed 150 | 100 110 76 66 150 Overloaded Moves . | . . . . . Propulsion Burnouts . | . . . . . Robots Hopped . | . . . . . Cave-ins Triggered . | . . . . . Exploration Rate (%) 30 | 4 47 34 55 12 Regions Visited 4 Branch Regions 3 Pre-discovered Areas 2 | . . . 1 1 Known Exits Taken . | . . . . . Unknown Exits Taken 4 | 1 1 1 1 . Scrap Searched . | . . . . . Spaces Dug . | . . . . . Terrain Destroyed . | . . . . . Melee . | . . . . . Projectile . | . . . . . AOE . | . . . . . Actions | -11 -10 -10 -10 -9 --------- Run | Scr Mat Min Exi Min Total 1195 | 57 425 449 187 77 Wait 346 | . 76 228 . 42 Move 730 | 43 274 209 184 20 Hop . | . . . . . Pick Up 23 | 4 18 . 1 . Fast Attach 10 | 7 3 . . . Attach 4 | . 2 1 . 1 Detach 2 | . 2 . . . Swap 6 | . 5 . 1 . Drop 25 | . 23 . 1 1 Fire 16 | 3 13 . . . Melee 33 | . 9 11 . 13 Ram . | . . . . . Kick . | . . . . . Crush . | . . . . . Escape Stasis . | . . . . . Rewire . | . . . . . Trap . | . . . . . Miscellaneous . | . . . . . Route ------- -11/Scrapyard -10/Materials (discovered 2 exits: [*Mat] / [*Min]) -10/Mines (discovered 2 exits: [*Mat] / *Exi) -10/Exiles -9/Mines History --------- Turn | Location | Event 20 | -11/Scrapyard | Discovered new exit (range 15) 66 | -11/Scrapyard | Entered Materials 291 | -10/Materials | Discovered new exit (range 3) 315 | -10/Materials | Build established: Mutant 481 | -10/Materials | Discovered new exit (range 11) 509 | -10/Materials | Entered Mines 801 | -10/Mines | Discovered new exit (range 2) 858 | -10/Mines | Deemed a non-threat by the Exiles lab entrance 858 | -10/Mines | Discovered new exit (range 5) 906 | -10/Mines | Entered Exiles 924 | -10/Exiles | Met 8R-AWN 935 | -10/Exiles | Met EX-HEX 972 | -10/Exiles | Met EX-DEC 983 | -10/Exiles | Learned location of Zion (-6) 1024 | -10/Exiles | Discovered new exit (range 10) 1030 | -10/Exiles | Entered Mines 1105 | -9/Mines | Core integrity fell below 50% 1118 | -9/Mines | Core integrity fell below 20% 1122 | -9/Mines | Destroyed by G-34 Mercenary with Small Laser Last Messages --------------- 01093_ Hover Unit destroyed. 01095_ S-10 Pest destroyed. 01098_ Acquired 10 matter. 01102_ Backup Power I destroyed. 01103_ K-01 Serf collects debris. 01109_ Destroyed Lgt. Ion Engine. 01109_ S-10 Pest system corrupted by crushing effect. 01112_ Destroyed Flight Unit. 01112_ S-10 Pest system corrupted by crushing effect. 01113_ S-10 Pest system terminally corrupted. 01113_ Flight Unit fried. 01114_ K-01 Serf collects debris. 01114_ Dropped Rigged Fission Core. 01115_ Rigged Fission Core explodes. 01115_ B-36 Bruiser destroyed. 01116_ Hover Unit destroyed. 01118_ U-05 Engineer builds a Wall. 01119_ Flail destroyed. 01122_ G-34 Mercenary destroyed. 01122_ U-05 Engineer lays Concrete. Map ----- +----------------------------------------------------+ | ????????????????????????????????????? | | ????????????????????????????????????? | | ????????????????????????????????????? | | ????????????????????????????????????? | | ????????????????????????????????????? | | ????????????????????????????????????? | | ????????????????????????????????????? | | ????????????? #????????????????????? | | ??????????? ????????????????????? | | ???????????? ????????????????????? | | ???????????? ????????????????????? | | ???????????? ##??????????????????? | | ???????????? ##?????????????????? | | ????????????# ## ???????????????? | | ????????????# ????????????????? | | ????????????# ?????????????????? | | ????????????# g?????????????????? | | ????????????? ??????????????????? | | ????????????? #??????????????????? | | ?????????????? ???????????????????? | | ?????????????? #????###????????????? | | ???????????####g##?## ##???????????? | | ???????????# ; ;#?# #???????????? | | ???????????##;; #### #??????? ??? | | ???????????#!/%s u #???? ?? | | ???????????#@*;;#### ### ? | | ???????????#%g ## ? | | ???????????#*##### ? | | ???????????#=#???# ###### ? | | ???????????# #???#### ####???? #?? | | ???????????# #?????# #?????? ???? | | ??????????? #?????# #??????????? | | ???????????###?????# #??????????? | | ???????????????????# #??????????? | | ???????????????????# #??????????? | | ???????????????????# #??????????? | | ???????????????????#######??????????? | | ????????????????????????????????????? | | ????????????????????????????????????? | | ????????????????????????????????????? | | ????????????????????????????????????? | | ????????????????????????????????????? | | ????????????????????????????????????? | | ????????????????????????????????????? | | ????????????????????????????????????? | | ????????????????????????????????????? | | ????????????????????????????????????? | | ????????????????????????????????????? | | ????????????????????????????????????? | | ????????????????????????????????????? | +----------------------------------------------------+ Best States ------------- Heat Dissipation 25 Energy Generation 10 Energy Capacity 250 Matter Stores 300 Matter Capacity 300 Sight Range 16 Terrain Scan Density 10 Core Shielding 20 Evasion (%) 51 Recoil Reduction 2 Item Schematics ----------------- None Robot Schematics ------------------ None Fabricated ------------ Nothing Alien Tech Used ----------------- None Achievements -------------- None Challenges ------------ None Game ------ Seed DeliveryLegRegenerator Manual? 0 Play Time 00:11:33 Cumulative 485.3 hours Start 2020.04.14 @ 04:55:34 End 2020.04.14 @ 05:06:12 Sessions 1 Manual Loads 0 Difficulty Rogue Special Mode None Game No. 378 Rogue 374 Adventurer 4 Explorer 0 Win Type - Total 56 Types 48/3/1/2/2/0/0 Lore% 93 Gallery% 95 Achievement% 96 Wizard Run 0 Options --------- ASCII 0 Keyboard 0 Movement Vi Keybinds 0 Fullscreen 0 Font 16/Terminus Map View 76x50 Tactical HUD 1 Map Filters NONE Filters NONE Steam 1 RUN: 4f595f96-907c-49a6-bc4a-d6d4ea186223